[Event "*** Titled Tuesday 3|2 Blitz"]
[Site "Chess.com"]
[Date "2016.05.03"]
[Round "5"]
[White "E-Shaposhnikov"]
[Black "Kacparov"]
[Result "1/2-1/2"]
[WhiteElo "2465"]
[BlackElo "2569"]
[TimeControl "180+2"]
[EndTime "18:04:07 PDT"]
[Termination "Game drawn by repetition"]

1. Nf3 {[%clk 0:03:01.9]} 1... c5 {[%clk 0:03:01.1]} 2. c4 {[%clk 0:03:03]} 2...
g6 {[%clk 0:03:02.4]} 3. d4 {[%clk 0:03:01.2]} 3... cxd4 {[%clk 0:03:03.7]} 4.
Nxd4 {[%clk 0:03:03.1]} 4... Bg7 {[%clk 0:03:05.1]} 5. e4 {[%clk 0:03:04.1]}
5... Nc6 {[%clk 0:03:05]} 6. Be3 {[%clk 0:03:05]} 6... d6 {[%clk 0:03:06.5]} 7.
Nc3 {[%clk 0:03:05.7]} 7... Nf6 {[%clk 0:03:08.1]} 8. Be2 {[%clk 0:03:07]} 8...
O-O {[%clk 0:03:09.7]} 9. O-O {[%clk 0:03:08]} 9... Bd7 {[%clk 0:03:11]} 10. Rc1
{[%clk 0:03:07.9]} 10... Nxd4 {[%clk 0:03:12]} 11. Bxd4 {[%clk 0:03:08.5]} 11...
Bc6 {[%clk 0:03:13.5]} 12. f3 {[%clk 0:03:07.4]} 12... a5 {[%clk 0:03:14.5]} 13.
Qd2 {[%clk 0:03:04.1]} 13... a4 {[%clk 0:03:15]} 14. Rc2 {[%clk 0:03:04.9]}
14... Nd7 {[%clk 0:03:10.5]} 15. Bf2 {[%clk 0:03:02.9]} 15... Nc5 {[%clk
0:03:09.6]} 16. Rb1 {[%clk 0:03:03.5]} 16... Qa5 {[%clk 0:03:08]} 17. b4 {[%clk
0:02:56.7]} 17... axb3 {[%clk 0:03:08.4]} 18. axb3 {[%clk 0:02:57.7]} 18... Bxc3
{[%clk 0:02:52.7]} 19. Qxc3 {[%clk 0:02:49.8]} 19... Qxc3 {[%clk 0:02:52.9]} 20.
Rxc3 {[%clk 0:02:51.7]} 20... Ra2 {[%clk 0:02:53.8]} 21. Kf1 {[%clk 0:02:29]}
21... Bxe4 {[%clk 0:02:46]} 22. fxe4 {[%clk 0:02:23.8]} 22... Nxe4 {[%clk
0:02:47]} 23. Be1 {[%clk 0:02:12.7]} 23... Nxc3 {[%clk 0:02:47.8]} 24. Bxc3
{[%clk 0:02:14.6]} 24... Rc2 {[%clk 0:02:46]} 25. Bd4 {[%clk 0:02:07.9]} 25...
e5 {[%clk 0:02:37.6]} 26. Bf2 {[%clk 0:01:56.9]} 26... f5 {[%clk 0:02:35.5]} 27.
Rd1 {[%clk 0:01:53.7]} 27... Ra8 {[%clk 0:02:31.8]} 28. c5 {[%clk 0:01:34.5]}
28... dxc5 {[%clk 0:02:01.5]} 29. Bd3 {[%clk 0:01:30.5]} 29... Rb2 {[%clk
0:01:55]} 30. Bxc5 {[%clk 0:01:30.8]} 30... Kg7 {[%clk 0:01:49.1]} 31. Bd6
{[%clk 0:01:23.5]} 31... Kf6 {[%clk 0:01:48.7]} 32. Bc4 {[%clk 0:01:15.5]} 32...
Raa2 {[%clk 0:01:47.3]} 33. Bc5 {[%clk 0:00:46.9]} 33... Rxg2 {[%clk 0:01:42]}
34. Rd7 {[%clk 0:00:36.7]} 34... Rgd2 {[%clk 0:01:15.4]} 35. Rf7+ {[%clk
0:00:25.1]} 35... Kg5 {[%clk 0:01:15.7]} 36. Be3+ {[%clk 0:00:26.8]} 36... Kg4
{[%clk 0:01:16]} 37. Bxd2 {[%clk 0:00:27.8]} 37... Rxd2 {[%clk 0:01:17.9]} 38.
Rxh7 {[%clk 0:00:28.4]} 38... e4 {[%clk 0:01:11]} 39. Be2+ {[%clk 0:00:23.8]}
39... Kf4 {[%clk 0:01:11.1]} 40. Rxb7 {[%clk 0:00:25.1]} 40... Ke3 {[%clk
0:01:10]} 41. Bc4 {[%clk 0:00:17.1]} 41... f4 {[%clk 0:01:10.1]} 42. Re7 {[%clk
0:00:12]} 42... f3 {[%clk 0:01:08.8]} 43. Kg1 {[%clk 0:00:13.6]} 43... Rg2+
{[%clk 0:01:08.3]} 44. Kh1 {[%clk 0:00:14.4]} 44... Rg5 {[%clk 0:01:03]} 45. h3
{[%clk 0:00:12]} 45... f2 {[%clk 0:00:58.7]} 46. Kh2 {[%clk 0:00:13.1]} 46...
Rg1 {[%clk 0:00:53.1]} 47. Rf7 {[%clk 0:00:13.7]} 47... Rc1 {[%clk 0:00:51.6]}
48. Kg2 {[%clk 0:00:13.9]} 48... Rg1+ {[%clk 0:00:52.4]} 49. Kh2 {[%clk
0:00:15.6]} 49... Rc1 {[%clk 0:00:38.8]} 50. Kg2 {[%clk 0:00:16.1]} 50... Rg1+
{[%clk 0:00:34.9]} 51. Kh2 {[%clk 0:00:17.3]} 51... Rc1 {[%clk 0:00:30.8]} 52.
Kg2 {[%clk 0:00:18.2]} 52... Rg1+ {[%clk 0:00:31.6]} 1/2-1/2

[Event "*** Titled Tuesday 3|2 Blitz"]
[Site "Chess.com"]
[Date "2016.05.03"]
[Round "5"]
[White "ethylalcohol"]
[Black "chesstatour"]
[Result "0-1"]
[WhiteElo "1742"]
[BlackElo "2021"]
[TimeControl "180+2"]
[EndTime "18:04:14 PDT"]
[Termination "chesstatour won on time"]

1. e4 {[%clk 0:02:55.9]} 1... c6 {[%clk 0:03:00.1]} 2. d4 {[%clk 0:02:53.8]}
2... d5 {[%clk 0:03:01.3]} 3. exd5 {[%clk 0:02:51.9]} 3... cxd5 {[%clk
0:03:03.2]} 4. c4 {[%clk 0:02:52.1]} 4... Nf6 {[%clk 0:03:03.6]} 5. Nc3 {[%clk
0:02:48.9]} 5... Nc6 {[%clk 0:03:03.7]} 6. Nf3 {[%clk 0:02:47.6]} 6... Bg4
{[%clk 0:02:57.2]} 7. cxd5 {[%clk 0:02:21.1]} 7... Nxd5 {[%clk 0:02:54.3]} 8.
Be2 {[%clk 0:02:07.6]} 8... e6 {[%clk 0:02:53]} 9. h3 {[%clk 0:02:05.8]} 9...
Bh5 {[%clk 0:02:53.4]} 10. O-O {[%clk 0:01:55.5]} 10... Be7 {[%clk 0:02:52.4]}
11. Qb3 {[%clk 0:01:24]} 11... Bxf3 {[%clk 0:02:31.8]} 12. Bxf3 {[%clk
0:01:22.6]} 12... Nxd4 {[%clk 0:02:29.9]} 13. Qa4+ {[%clk 0:01:22.9]} 13... Nc6
{[%clk 0:02:29.3]} 14. Nxd5 {[%clk 0:01:13.2]} 14... exd5 {[%clk 0:02:28.7]} 15.
Rd1 {[%clk 0:01:13.7]} 15... O-O {[%clk 0:02:24.4]} 16. Bxd5 {[%clk 0:00:59.3]}
16... Qb6 {[%clk 0:02:21.9]} 17. Be3 {[%clk 0:00:54.4]} 17... Qb4 {[%clk
0:01:39.6]} 18. Qc2 {[%clk 0:00:28.7]} 18... Rac8 {[%clk 0:01:34.1]} 19. Qf5
{[%clk 0:00:17.1]} 19... g6 {[%clk 0:00:54.6]} 20. Qd3 {[%clk 0:00:07.6]} 20...
Ne5 {[%clk 0:00:42.7]} 21. Qe4 {[%clk 0:00:07.1]} 21... Qxe4 {[%clk 0:00:38.3]}
22. Bxe4 {[%clk 0:00:09]} 22... b6 {[%clk 0:00:33.6]} 23. Bf4 {[%clk 0:00:09.2]}
23... Nc4 {[%clk 0:00:29.5]} 24. Rd7 {[%clk 0:00:09.4]} 24... Bf6 {[%clk
0:00:27.5]} 25. Rxa7 {[%clk 0:00:09]} 25... Nxb2 {[%clk 0:00:25.4]} 26. Rb1
{[%clk 0:00:09.5]} 26... Rc4 {[%clk 0:00:22.1]} 27. Bh6 {[%clk 0:00:07.7]} 27...
Rxe4 {[%clk 0:00:19.4]} 28. Bxf8 {[%clk 0:00:07.6]} 28... Kxf8 {[%clk
0:00:20.8]} 29. Rb7 {[%clk 0:00:07.1]} 29... Nc4 {[%clk 0:00:20]} 30. Rd1 {[%clk
0:00:06.3]} 30... Be7 {[%clk 0:00:16.6]} 31. Rdd7 {[%clk 0:00:06]} 31... f6
{[%clk 0:00:14.5]} 32. Rb8+ {[%clk 0:00:06]} 32... Kf7 {[%clk 0:00:15.6]} 33. g3
{[%clk 0:00:05.9]} 33... Ke6 {[%clk 0:00:15.2]} 34. Rc7 {[%clk 0:00:04]} 34...
b5 {[%clk 0:00:11.9]} 35. Rbb7 {[%clk 0:00:03.5]} 35... Bd6 {[%clk 0:00:11.8]}
36. Rxh7 {[%clk 0:00:04.1]} 36... g5 {[%clk 0:00:09.5]} 37. Rh8 {[%clk
0:00:02.5]} 37... Re1+ {[%clk 0:00:08]} 38. Kg2 {[%clk 0:00:02.6]} 38... Re5
{[%clk 0:00:09]} 39. Re8+ {[%clk 0:00:02.9]} 39... Kd5 {[%clk 0:00:08.6]} 40.
Rxe5+ {[%clk 0:00:02.7]} 40... Bxe5 {[%clk 0:00:10.5]} 41. Rxb5+ {[%clk
0:00:03.6]} 41... Kc6 {[%clk 0:00:11.7]} 42. Rb4 {[%clk 0:00:02.2]} 42... Kc5
{[%clk 0:00:09.6]} 43. Rb7 {[%clk 0:00:02.4]} 43... Nd6 {[%clk 0:00:07.7]} 0-1

[Event "*** Titled Tuesday 3|2 Blitz"]
[Site "Chess.com"]
[Date "2016.05.03"]
[Round "5"]
[White "SabinaFoisor"]
[Black "Noukii"]
[Result "0-1"]
[WhiteElo "2194"]
[BlackElo "2700"]
[TimeControl "180+2"]
[EndTime "18:04:25 PDT"]
[Termination "Noukii won by resignation"]

1. d4 {[%clk 0:03:01.9]} 1... d5 {[%clk 0:02:58.8]} 2. c4 {[%clk 0:03:01.8]}
2... c6 {[%clk 0:03:00.4]} 3. Nf3 {[%clk 0:02:59.1]} 3... Nf6 {[%clk 0:03:01.9]}
4. e3 {[%clk 0:02:58.6]} 4... Bf5 {[%clk 0:03:02.3]} 5. Bd3 {[%clk 0:02:55.3]}
5... Bg6 {[%clk 0:02:58.5]} 6. O-O {[%clk 0:02:51.3]} 6... e6 {[%clk 0:02:59.7]}
7. b3 {[%clk 0:02:44.4]} 7... Nbd7 {[%clk 0:02:58.7]} 8. Ba3 {[%clk 0:02:44.5]}
8... Bxa3 {[%clk 0:02:57.2]} 9. Nxa3 {[%clk 0:02:46.4]} 9... Ne4 {[%clk
0:02:53.4]} 10. Bxe4 {[%clk 0:02:39.3]} 10... Bxe4 {[%clk 0:02:52.1]} 11. Nd2
{[%clk 0:02:32.8]} 11... Bg6 {[%clk 0:02:52.9]} 12. f3 {[%clk 0:02:25.6]} 12...
O-O {[%clk 0:02:46.9]} 13. Kh1 {[%clk 0:02:22.6]} 13... Qa5 {[%clk 0:02:44.7]}
14. Qc1 {[%clk 0:02:16.4]} 14... Rac8 {[%clk 0:02:43.6]} 15. Qb2 {[%clk
0:02:15.5]} 15... Rfe8 {[%clk 0:02:43.2]} 16. b4 {[%clk 0:02:12.5]} 16... Qd8
{[%clk 0:02:43.3]} 17. e4 {[%clk 0:01:51.6]} 17... Nf6 {[%clk 0:01:46.2]} 18.
cxd5 {[%clk 0:01:27.3]} 18... cxd5 {[%clk 0:01:40.6]} 19. e5 {[%clk 0:01:27.8]}
19... Nd7 {[%clk 0:01:42.2]} 20. Rac1 {[%clk 0:01:27]} 20... Qb6 {[%clk
0:01:01.2]} 21. h3 {[%clk 0:01:22.8]} 21... h5 {[%clk 0:00:55.4]} 22. Rfe1
{[%clk 0:01:17.7]} 22... Nb8 {[%clk 0:00:55.3]} 23. b5 {[%clk 0:01:00.4]} 23...
Nc6 {[%clk 0:00:54.6]} 24. Nb3 {[%clk 0:00:57]} 24... Nb4 {[%clk 0:00:56.2]} 25.
Rxc8 {[%clk 0:00:49]} 25... Rxc8 {[%clk 0:00:58.1]} 26. Rc1 {[%clk 0:00:49.6]}
26... Rxc1+ {[%clk 0:00:34.6]} 27. Qxc1 {[%clk 0:00:51.5]} 27... Qd8 {[%clk
0:00:33.6]} 28. Qb2 {[%clk 0:00:53.4]} 28... Qg5 {[%clk 0:00:31.7]} 29. Nc5
{[%clk 0:00:43.3]} 29... Nd3 {[%clk 0:00:21.7]} 30. Nxd3 {[%clk 0:00:40.8]}
30... Bxd3 {[%clk 0:00:23.6]} 31. Qc3 {[%clk 0:00:30.1]} 31... Qe3 {[%clk
0:00:22.9]} 32. Nb1 {[%clk 0:00:21.4]} 32... b6 {[%clk 0:00:17]} 33. Nd2 {[%clk
0:00:18.2]} 33... Qe1+ {[%clk 0:00:15.6]} 34. Kh2 {[%clk 0:00:19.4]} 34... Bxb5
{[%clk 0:00:16.3]} 35. Qc8+ {[%clk 0:00:18.1]} 35... Kh7 {[%clk 0:00:17.1]} 36.
Qc2+ {[%clk 0:00:15.4]} 36... Kh6 {[%clk 0:00:13.4]} 37. Nb3 {[%clk 0:00:13]}
37... h4 {[%clk 0:00:14.7]} 38. Qd2+ {[%clk 0:00:13.2]} 38... Qxd2 {[%clk
0:00:15.7]} 39. Nxd2 {[%clk 0:00:15.1]} 39... a5 {[%clk 0:00:15.6]} 40. f4
{[%clk 0:00:14.6]} 40... Bc4 {[%clk 0:00:14.2]} 41. a3 {[%clk 0:00:13.2]} 41...
b5 {[%clk 0:00:15.6]} 42. Kg1 {[%clk 0:00:10.6]} 42... b4 {[%clk 0:00:14.1]} 43.
axb4 {[%clk 0:00:07.9]} 43... axb4 {[%clk 0:00:15.6]} 44. Kf2 {[%clk 0:00:08.7]}
44... b3 {[%clk 0:00:17.1]} 45. Ke3 {[%clk 0:00:09.2]} 45... b2 {[%clk
0:00:18.7]} 46. Nb1 {[%clk 0:00:09.2]} 46... Ba2 {[%clk 0:00:19.6]} 47. Nc3
{[%clk 0:00:08.6]} 47... b1=Q {[%clk 0:00:21]} 48. Nxb1 {[%clk 0:00:09.5]} 48...
Bxb1 {[%clk 0:00:22.9]} 49. Kf3 {[%clk 0:00:07.6]} 49... Kh5 {[%clk 0:00:19.7]}
50. g4+ {[%clk 0:00:05.9]} 50... hxg3 {[%clk 0:00:20.2]} 51. Kxg3 {[%clk
0:00:07.1]} 51... Bf5 {[%clk 0:00:21.8]} 52. h4 {[%clk 0:00:06.2]} 52... g6
{[%clk 0:00:23.4]} 0-1

[Event "*** Titled Tuesday 3|2 Blitz"]
[Site "Chess.com"]
[Date "2016.05.03"]
[Round "5"]
[White "yarosavich"]
[Black "ZEN-22"]
[Result "1/2-1/2"]
[WhiteElo "2535"]
[BlackElo "2401"]
[TimeControl "180+2"]
[EndTime "18:04:34 PDT"]
[Termination "Game drawn by stalemate"]

1. d4 {[%clk 0:03:01.9]} 1... Nf6 {[%clk 0:02:58.4]} 2. c4 {[%clk 0:03:01.8]}
2... d6 {[%clk 0:02:54.4]} 3. Nf3 {[%clk 0:03:02.5]} 3... g6 {[%clk 0:02:54.8]}
4. Nc3 {[%clk 0:03:04]} 4... Bf5 {[%clk 0:02:55.2]} 5. g3 {[%clk 0:03:01.9]}
5... Nc6 {[%clk 0:02:54.8]} 6. Bg2 {[%clk 0:03:02]} 6... Ne4 {[%clk 0:02:56.3]}
7. Nxe4 {[%clk 0:02:56.8]} 7... Bxe4 {[%clk 0:02:57.1]} 8. O-O {[%clk
0:02:56.9]} 8... Bg7 {[%clk 0:02:58.2]} 9. Be3 {[%clk 0:02:58.5]} 9... O-O
{[%clk 0:02:58.4]} 10. Qd2 {[%clk 0:02:48.8]} 10... e5 {[%clk 0:02:58.9]} 11. d5
{[%clk 0:02:36.5]} 11... Ne7 {[%clk 0:02:51.1]} 12. Rac1 {[%clk 0:02:32.4]}
12... Nf5 {[%clk 0:02:47.4]} 13. Rfd1 {[%clk 0:02:25]} 13... h6 {[%clk
0:02:40.3]} 14. c5 {[%clk 0:02:11.2]} 14... Nxe3 {[%clk 0:02:34.9]} 15. Qxe3
{[%clk 0:02:11.3]} 15... f5 {[%clk 0:02:32.9]} 16. Nh4 {[%clk 0:01:39.2]} 16...
Bxg2 {[%clk 0:02:31.8]} 17. Nxg2 {[%clk 0:01:38.2]} 17... f4 {[%clk 0:02:28.5]}
18. Qe4 {[%clk 0:01:26]} 18... Qf6 {[%clk 0:02:26.8]} 19. f3 {[%clk 0:01:13.7]}
19... h5 {[%clk 0:02:21.3]} 20. cxd6 {[%clk 0:01:02.5]} 20... cxd6 {[%clk
0:02:22.4]} 21. Rc7 {[%clk 0:01:03.5]} 21... Rf7 {[%clk 0:02:23.7]} 22. Rdc1
{[%clk 0:01:03.4]} 22... Raf8 {[%clk 0:02:24.6]} 23. Nh4 {[%clk 0:01:01.6]}
23... Kh7 {[%clk 0:02:24.8]} 24. b4 {[%clk 0:00:50.8]} 24... Qg5 {[%clk
0:02:24.9]} 25. Kg2 {[%clk 0:00:38.8]} 25... Bf6 {[%clk 0:02:11]} 26. Kf2 {[%clk
0:00:23.5]} 26... Qh6 {[%clk 0:02:05.4]} 27. Ng2 {[%clk 0:00:23.9]} 27... Kg7
{[%clk 0:02:04.8]} 28. gxf4 {[%clk 0:00:13.3]} 28... exf4 {[%clk 0:02:03]} 29.
Nxf4 {[%clk 0:00:15.2]} 29... Bh4+ {[%clk 0:01:51.9]} 30. Kg2 {[%clk 0:00:14.2]}
30... Qg5+ {[%clk 0:01:51.1]} 31. Kh1 {[%clk 0:00:15]} 31... Kh6 {[%clk
0:01:49.1]} 32. Rxf7 {[%clk 0:00:12.7]} 32... Rxf7 {[%clk 0:01:49.8]} 33. e3
{[%clk 0:00:09.4]} 33... Qf5 {[%clk 0:01:47.1]} 34. Qxf5 {[%clk 0:00:08.1]}
34... Rxf5 {[%clk 0:01:48.3]} 35. Kg2 {[%clk 0:00:09]} 35... Bg5 {[%clk
0:01:49.6]} 36. Rc7 {[%clk 0:00:06]} 36... Bxf4 {[%clk 0:01:51]} 37. exf4 {[%clk
0:00:07.5]} 37... Rxf4 {[%clk 0:01:51.6]} 38. Rxb7 {[%clk 0:00:08.7]} 38... Rd4
{[%clk 0:01:52.9]} 39. a3 {[%clk 0:00:08.3]} 39... a5 {[%clk 0:01:52.3]} 40.
bxa5 {[%clk 0:00:07]} 40... Ra4 {[%clk 0:01:52.9]} 41. a6 {[%clk 0:00:08.9]}
41... Rxa6 {[%clk 0:01:53.9]} 42. Rd7 {[%clk 0:00:08.9]} 42... Kg5 {[%clk
0:01:55.2]} 43. Kg3 {[%clk 0:00:09.5]} 43... Kf5 {[%clk 0:01:55.9]} 44. Rf7+
{[%clk 0:00:06.5]} 44... Ke5 {[%clk 0:01:56.4]} 45. Rg7 {[%clk 0:00:07.7]} 45...
Kf6 {[%clk 0:01:57.7]} 46. Rd7 {[%clk 0:00:08.7]} 46... g5 {[%clk 0:01:59.1]}
47. Rh7 {[%clk 0:00:09.4]} 47... Kg6 {[%clk 0:02:00.1]} 48. Re7 {[%clk
0:00:10.1]} 48... h4+ {[%clk 0:02:01]} 49. Kg4 {[%clk 0:00:10.5]} 49... Ra4+
{[%clk 0:02:02.2]} 50. Kh3 {[%clk 0:00:12]} 50... Kf6 {[%clk 0:02:02.6]} 51.
Re6+ {[%clk 0:00:12.7]} 51... Kf5 {[%clk 0:02:04.5]} 52. Rxd6 {[%clk 0:00:13.3]}
52... Rxa3 {[%clk 0:02:06.4]} 53. Kg2 {[%clk 0:00:14.9]} 53... Ra2+ {[%clk
0:02:07.5]} 54. Kh3 {[%clk 0:00:16.4]} 54... Rf2 {[%clk 0:02:08.2]} 55. Rd8
{[%clk 0:00:16.3]} 55... Rxf3+ {[%clk 0:02:09.5]} 56. Kg2 {[%clk 0:00:17.8]}
56... Rd3 {[%clk 0:02:11.4]} 57. d6 {[%clk 0:00:18.1]} 57... Kg4 {[%clk
0:02:06.9]} 58. d7 {[%clk 0:00:16.8]} 58... Rd2+ {[%clk 0:02:08.2]} 59. Kg1
{[%clk 0:00:16.9]} 59... Kh3 {[%clk 0:02:08.3]} 60. Rg8 {[%clk 0:00:16.2]} 60...
Rd1+ {[%clk 0:02:08.4]} 61. Kf2 {[%clk 0:00:17.1]} 61... Rxd7 {[%clk 0:02:08.2]}
62. Rxg5 {[%clk 0:00:18.7]} 62... Kxh2 {[%clk 0:02:09.4]} 63. Rg2+ {[%clk
0:00:18.3]} 63... Kh3 {[%clk 0:02:10.2]} 64. Rg8 {[%clk 0:00:19.8]} 64... Rf7+
{[%clk 0:02:11.3]} 65. Kg1 {[%clk 0:00:20.2]} 65... Rc7 {[%clk 0:02:12.5]} 66.
Kh1 {[%clk 0:00:20.5]} 66... Rc1+ {[%clk 0:02:12.5]} 67. Rg1 {[%clk 0:00:22]}
67... Rc2 {[%clk 0:02:14.4]} 68. Ra1 {[%clk 0:00:22.7]} 68... Rh2+ {[%clk
0:02:15.2]} 69. Kg1 {[%clk 0:00:23.4]} 69... Rg2+ {[%clk 0:02:17.1]} 70. Kh1
{[%clk 0:00:24.8]} 70... Rg3 {[%clk 0:02:18.9]} 71. Rb1 {[%clk 0:00:25.2]} 71...
Re3 {[%clk 0:02:19.9]} 72. Ra1 {[%clk 0:00:26.2]} 72... Kg3 {[%clk 0:02:21.1]}
73. Rb1 {[%clk 0:00:26.7]} 73... Rf3 {[%clk 0:02:21]} 74. Ra1 {[%clk 0:00:28]}
74... Kh3 {[%clk 0:02:22.4]} 75. Rb1 {[%clk 0:00:26.4]} 75... Kg4 {[%clk
0:02:23.3]} 76. Ra1 {[%clk 0:00:27.8]} 76... Kg3 {[%clk 0:02:24.6]} 77. Rb1
{[%clk 0:00:29.4]} 77... Rf2 {[%clk 0:02:25.7]} 78. Ra1 {[%clk 0:00:30.6]} 78...
Rh2+ {[%clk 0:02:26.2]} 79. Kg1 {[%clk 0:00:31.4]} 79... Rg2+ {[%clk 0:02:28.1]}
80. Kh1 {[%clk 0:00:32.5]} 80... Rf2 {[%clk 0:02:30]} 81. Rb1 {[%clk 0:00:33]}
81... Rf3 {[%clk 0:02:31.1]} 82. Ra1 {[%clk 0:00:34.1]} 82... h3 {[%clk
0:02:28.4]} 83. Rb1 {[%clk 0:00:34.2]} 83... Kf2 {[%clk 0:02:28.8]} 84. Ra1
{[%clk 0:00:32.9]} 84... Rg3 {[%clk 0:02:29.2]} 85. Rb1 {[%clk 0:00:33.4]} 85...
h2 {[%clk 0:02:30.1]} 86. Rb2+ {[%clk 0:00:29.3]} 86... Kf1 {[%clk 0:02:30.5]}
87. Rb1+ {[%clk 0:00:28.8]} 87... Kf2 {[%clk 0:02:31.2]} 88. Rb2+ {[%clk
0:00:30.2]} 88... Kf3 {[%clk 0:02:32.6]} 89. Rb3+ {[%clk 0:00:31]} 89... Kg4
{[%clk 0:02:32.9]} 90. Rxg3+ {[%clk 0:00:32.9]} 90... Kxg3 {[%clk 0:02:34.2]}
1/2-1/2

[Event "*** Titled Tuesday 3|2 Blitz"]
[Site "Chess.com"]
[Date "2016.05.03"]
[Round "5"]
[White "AkshatChandra"]
[Black "AlexanderL"]
[Result "0-1"]
[WhiteElo "2657"]
[BlackElo "2580"]
[TimeControl "180+2"]
[EndTime "18:04:43 PDT"]
[Termination "AlexanderL won by resignation"]

1. b3 {[%clk 0:03:00.8]} 1... d5 {[%clk 0:02:58.2]} 2. Bb2 {[%clk 0:03:00.6]}
2... Bf5 {[%clk 0:02:59.1]} 3. e3 {[%clk 0:02:59.8]} 3... e6 {[%clk 0:02:59.8]}
4. f4 {[%clk 0:03:00.3]} 4... Nf6 {[%clk 0:03:00.2]} 5. Nf3 {[%clk 0:03:01.4]}
5... Be7 {[%clk 0:03:00.9]} 6. Be2 {[%clk 0:03:02.2]} 6... h6 {[%clk 0:03:00.8]}
7. O-O {[%clk 0:03:04.1]} 7... O-O {[%clk 0:03:01.3]} 8. d3 {[%clk 0:03:00.6]}
8... Bc5 {[%clk 0:02:52.1]} 9. Nd4 {[%clk 0:02:58.2]} 9... Nc6 {[%clk
0:02:47.2]} 10. Nd2 {[%clk 0:02:50.4]} 10... Bh7 {[%clk 0:02:45.8]} 11. N2f3
{[%clk 0:02:49.4]} 11... Re8 {[%clk 0:02:40]} 12. Qd2 {[%clk 0:02:42.4]} 12...
Bb4 {[%clk 0:02:26.6]} 13. Qc1 {[%clk 0:01:52.8]} 13... Ne7 {[%clk 0:02:24.8]}
14. a3 {[%clk 0:01:51.4]} 14... Ba5 {[%clk 0:02:23.2]} 15. b4 {[%clk 0:01:51.9]}
15... Bb6 {[%clk 0:02:24.1]} 16. c4 {[%clk 0:01:52.1]} 16... dxc4 {[%clk
0:02:20.3]} 17. dxc4 {[%clk 0:01:54]} 17... c5 {[%clk 0:02:21.5]} 18. Nb5 {[%clk
0:01:51.3]} 18... Nf5 {[%clk 0:02:19.4]} 19. Rd1 {[%clk 0:01:41.5]} 19... Qe7
{[%clk 0:02:20.3]} 20. bxc5 {[%clk 0:01:30.3]} 20... Bxc5 {[%clk 0:02:15.8]} 21.
Nbd4 {[%clk 0:01:27.9]} 21... Ng4 {[%clk 0:02:07]} 22. Rd3 {[%clk 0:01:01.7]}
22... Rad8 {[%clk 0:02:07.8]} 23. Qc3 {[%clk 0:00:31.2]} 23... Ngxe3 {[%clk
0:01:52.7]} 24. Kh1 {[%clk 0:00:14.1]} 24... Ng4 {[%clk 0:01:11.3]} 25. Rf1
{[%clk 0:00:09.7]} 25... Nxd4 {[%clk 0:01:03.2]} 26. Rxd4 {[%clk 0:00:09.7]}
26... Bxd4 {[%clk 0:01:00.9]} 27. Nxd4 {[%clk 0:00:10.5]} 27... Nf6 {[%clk
0:00:59.6]} 28. Qa5 {[%clk 0:00:05.3]} 28... b6 {[%clk 0:00:59.2]} 29. Qc3
{[%clk 0:00:04.2]} 29... Qc5 {[%clk 0:00:56.3]} 30. Nb3 {[%clk 0:00:03.3]} 30...
Qc7 {[%clk 0:00:47.2]} 31. Qg3 {[%clk 0:00:04.2]} 31... Qe7 {[%clk 0:00:35.7]}
32. Nd4 {[%clk 0:00:04.2]} 32... Be4 {[%clk 0:00:36.5]} 33. Nb5 {[%clk
0:00:03.3]} 33... Kh8 {[%clk 0:00:33.4]} 34. Nc3 {[%clk 0:00:03.9]} 34... Ba8
{[%clk 0:00:33.2]} 35. h3 {[%clk 0:00:05.2]} 35... Rd2 {[%clk 0:00:31.3]} 36.
Ba1 {[%clk 0:00:05.4]} 36... Red8 {[%clk 0:00:27.7]} 37. Qe3 {[%clk 0:00:06.6]}
37... Qc5 {[%clk 0:00:26.7]} 38. Qg3 {[%clk 0:00:06.7]} 38... Qxa3 {[%clk
0:00:16]} 39. Qh4 {[%clk 0:00:03]} 39... Qf8 {[%clk 0:00:08.6]} 40. Bf3 {[%clk
0:00:02.6]} 40... Bxf3 {[%clk 0:00:08.7]} 41. Rxf3 {[%clk 0:00:04.5]} 41... Rd1+
{[%clk 0:00:07.2]} 42. Nxd1 {[%clk 0:00:03.2]} 42... Rxd1+ {[%clk 0:00:09.1]}
43. Kh2 {[%clk 0:00:04.9]} 43... Rxa1 {[%clk 0:00:10.7]} 44. Rd3 {[%clk
0:00:06.4]} 44... Ra5 {[%clk 0:00:11]} 45. Qe1 {[%clk 0:00:05.4]} 45... Rc5
{[%clk 0:00:11.5]} 46. Qd2 {[%clk 0:00:06.8]} 46... Rc8 {[%clk 0:00:12.6]} 47.
Qa2 {[%clk 0:00:06.3]} 47... Qe7 {[%clk 0:00:13.2]} 48. Qa4 {[%clk 0:00:07.2]}
48... g6 {[%clk 0:00:12.7]} 49. Ra3 {[%clk 0:00:07.5]} 49... Rc7 {[%clk
0:00:13.3]} 50. Rd3 {[%clk 0:00:08.5]} 50... Kg7 {[%clk 0:00:14.3]} 51. g4
{[%clk 0:00:08.7]} 51... Qc5 {[%clk 0:00:14.9]} 52. Qa1 {[%clk 0:00:05.6]} 52...
Qf2+ {[%clk 0:00:14.1]} 53. Kh1 {[%clk 0:00:07.4]} 53... Qxf4 {[%clk 0:00:14.9]}
0-1